fUST/lending_fUST_20240624
["ID","MTS","AMOUNT","RATE_DAILY","PERIOD"]
[330275797,1719222205072,-593.93,0.0001646,2]
[330275798,1719222205098,-8740.27,0.0001646,2]
[330275799,1719222205124,-500.0,0.0001646,2]
[330275800,1719222205150,-255.27842611,0.0001646,2]
[330275801,1719222205176,-538.312832,0.0001646,2]
[330275802,1719222205201,-538.312832,0.0001646,2]
[330275803,1719222205232,-538.312832,0.0001646,2]
[330275804,1719222205258,-538.312832,0.0001646,2]
[330275805,1719222205284,-538.312832,0.0001646,2]
[330275806,1719222205310,-538.312832,0.0001646,2]
[330275807,1719222205342,-2379.52,0.0001646,2]
[330275808,1719222205370,-500.0,0.0001646,2]
[330275809,1719222205397,-151.0,0.0001646,2]
[330275810,1719222205424,-151.0,0.0001646,2]
[330275811,1719222205450,-151.0,0.0001646,2]
[330275812,1719222205478,-1038.2,0.0001646,2]
[330275813,1719222205503,-151.0,0.0001646,2]
[330275814,1719222205534,-151.0,0.0001646,2]
[330275815,1719222205561,-151.0,0.0001646,2]
[330275816,1719222205588,-151.0,0.00016498,2]
[330275817,1719222205614,-813.61,0.00016498,2]
[330275818,1719222205640,-507.98321702,0.00016498,2]
[330275819,1719222205667,-500.0,0.00016498,2]
[330275820,1719222205693,-719.51,0.00016498,2]
[330275821,1719222205722,-500.0,0.00016498,2]
[330275822,1719222205748,-519.34388009,0.00016498,2]
[330275823,1719222205781,-151.0,0.00016498,2]
[330275824,1719222205814,-500.0,0.00016498,2]
[330275825,1719222205840,-610.61903707,0.00016498,2]
[330275826,1719222205866,-500.0,0.00016498,2]
[330275827,1719222205890,-538.312832,0.00016527,2]
[330275828,1719222205916,-538.312832,0.00016527,2]
[330275829,1719222205941,-151.0,0.00016527,2]
[330275830,1719222205968,-151.0,0.00016527,2]
[330275831,1719222205993,-1469.6398233,0.00016528,2]
[330275832,1719222206019,-181.672692,0.00016535,2]
[330275833,1719222206046,-524.41677193,0.00016568,2]
[330275834,1719222206072,-513.92000846,0.00016569,2]
[330275835,1719222206098,-500.0,0.00016569,2]
[330275836,1719222206123,-500.0,0.00016569,2]
[330275837,1719222206149,-906.5,0.00016569,2]
[330275838,1719222206174,-1123.17,0.00016569,2]
[330275839,1719222206199,-553.51553165,0.00016569,2]
[330275840,1719222206228,-500.0,0.00016569,2]
[330275841,1719222206252,-500.0,0.00016569,2]
[330275842,1719222206276,-505.49226933,0.00016569,2]
[330275843,1719222206300,-509.06532431,0.00016569,2]
[330275844,1719222206331,-151.0,0.00016569,2]
[330275845,1719222206357,-949.97,0.00016569,2]
[330275846,1719222206385,-500.0,0.00016569,2]
[330275847,1719222206412,-506.42954724,0.00016569,2]
[330275848,1719222206439,-500.0,0.00016569,2]
[330275849,1719222206471,-500.0,0.00016569,2]
[330275850,1719222206497,-500.0,0.00016569,2]
[330275851,1719222206524,-486.80664094,0.00016569,2]
[330275852,1719222206551,-517.76026908,0.00016569,2]
[330275853,1719222206577,-500.0,0.00016569,2]
[330275854,1719222206602,-151.0,0.00016569,2]
[330275855,1719222206628,-151.0,0.00016569,2]
[330275856,1719222206654,-157.971833,0.00016569,2]
[330275857,1719222206680,-500.0,0.00016569,2]
[330275858,1719222206707,-753.55,0.00016569,2]
[330275859,1719222206738,-500.0,0.00016569,2]
[330275860,1719222206765,-500.0,0.00016569,2]
[330275861,1719222206792,-728.93,0.00016569,2]
[330275862,1719222206818,-500.0,0.00016569,2]
[330275863,1719222206845,-507.19291762,0.00016569,2]
[330275864,1719222206874,-500.0,0.00016569,2]
[330275865,1719222206903,-500.0,0.00016569,2]
[330275866,1719222206934,-602.98,0.00016569,2]
[330275867,1719222206969,-500.0,0.00016569,2]
[330275868,1719222206995,-493.7669497,0.00016569,2]
[330275869,1719222207022,-505.07910627,0.00016569,2]
[330275870,1719222207169,-514.36543762,0.00016569,2]
[330275871,1719222207195,-1441.06,0.00016569,2]
[330275872,1719222207229,-913.66,0.00016569,2]
[330275873,1719222207255,-501.41,0.00016569,2]
[330275874,1719222207286,-500.0,0.00016569,2]
[330275875,1719222207317,-642.39,0.00016569,2]
[330275876,1719222207347,-292.475844,0.00016569,2]
[330275877,1719222207373,-292.475844,0.00016569,2]
[330275878,1719222207401,-292.475844,0.00016569,2]
[330275879,1719222207433,-292.475844,0.00016569,2]
[330275880,1719222207466,-292.475844,0.00016569,2]
[330275881,1719222207492,-292.475844,0.00016569,2]
[330275882,1719222207519,-292.475844,0.00016569,2]
[330275883,1719222207561,-292.475844,0.00016569,2]
[330275884,1719222207588,-292.475844,0.00016569,2]
[330275885,1719222207614,-292.475844,0.00016569,2]
[330275886,1719222207641,-500.0,0.00016569,2]
[330275887,1719222207667,-395.943706,0.00016569,2]
[330275888,1719222207692,-395.943706,0.00016569,2]
[330275889,1719222207721,-395.943706,0.00016569,2]
[330275890,1719222207746,-500.0,0.00016569,2]
[330275891,1719222207772,-395.943706,0.00016569,2]
[330275892,1719222207798,-395.943706,0.00016569,2]
[330275893,1719222207823,-395.943706,0.00016569,2]
[330275894,1719222207848,-395.943706,0.00016569,2]
[330275895,1719222207874,-395.943706,0.00016569,2]
[330275896,1719222207900,-395.943706,0.00016569,2]
[330275897,1719222207926,-395.943706,0.00016569,2]
[330275898,1719222207953,-513.29,0.00016569,2]
[330275899,1719222207985,-395.943706,0.00016569,2]
[330275900,1719222208011,-395.943706,0.00016569,2]
[330275901,1719222208037,-395.943706,0.00016569,2]
[330275902,1719222208064,-395.943706,0.00016569,2]
[330275903,1719222208089,-395.943706,0.00016569,2]
[330275904,1719222208115,-395.943706,0.00016569,2]
[330275905,1719222208143,-3689.85,0.00016569,2]
[330275906,1719222208170,-507.16185287,0.00016569,2]
[330275907,1719222208196,-151.0,0.00016569,2]
[330275908,1719222208226,-151.0,0.00016569,2]
[330275909,1719222208263,-154.831503,0.00016569,2]
[330275910,1719222208300,-151.0,0.00016569,2]
[330275911,1719222208343,-151.0,0.00016569,2]
[330275912,1719222208380,-364.0085891,0.00016569,2]
[330275913,1719222208418,-151.0,0.00016569,2]
[330275914,1719222208451,-151.0,0.00016569,2]
[330275915,1719222208494,-151.0,0.00016569,2]
[330275916,1719222208525,-151.0,0.00016569,2]
[330275917,1719222208560,-151.0,0.00016569,2]
[330275918,1719222208597,-151.0,0.00016569,2]
[330275919,1719222208627,-190.898832,0.00016569,2]
[330275920,1719222208660,-518.67238111,0.00016569,2]
[330275921,1719222208691,-8223.761611,0.00016569,2]
[330275922,1719222208725,-8223.761611,0.00016569,2]
[330275923,1719222208754,-8223.761611,0.00016569,2]
[330275924,1719222208785,-8223.761611,0.00016569,2]
[330275925,1719222208816,-8223.761611,0.00016569,2]
[330275926,1719222208847,-8223.761611,0.00016569,2]
[330275927,1719222208877,-8223.761611,0.00016569,2]
[330275928,1719222208907,-8223.761611,0.00016569,2]
[330275929,1719222208938,-8223.761611,0.00016569,2]
[330275930,1719222208968,-8223.761611,0.00016569,2]
[330275931,1719222208998,-8223.761611,0.00016569,2]
[330275932,1719222209028,-8223.761611,0.00016569,2]
[330275933,1719222209058,-8223.761611,0.00016569,2]
[330275934,1719222209089,-8223.761611,0.00016569,2]
[330275935,1719222209119,-8223.761611,0.00016569,2]
[330275936,1719222209150,-500.0,0.00016569,2]
[330275937,1719222209182,-8223.761611,0.00016569,2]
[330275938,1719222209217,-542.03290868,0.00016569,2]
[330275939,1719222209246,-608.1,0.00016569,2]
[330275940,1719222209281,-721.72,0.00016569,2]
[330275941,1719222209327,-674.66,0.00016569,2]
[330275942,1719222209362,-512.99197026,0.00016569,2]
[330275943,1719222209395,-500.0,0.00016569,2]
[330275944,1719222209432,-565.23,0.00016569,2]
[330275945,1719222209473,-500.0,0.00016569,2]
[330275946,1719222209505,-500.0,0.00016569,2]
[330275947,1719222209728,-1785.97,0.00016569,2]
[330275948,1719222209755,-2724.49,0.00016569,2]
[330275949,1719222209783,-14099.63,0.00016569,2]
[330275950,1719222209809,-538.312832,0.00016569,2]
[330275951,1719222209836,-538.312832,0.00016569,2]
[330275952,1719222209863,-538.312832,0.00016569,2]
[330275953,1719222209889,-538.312832,0.00016569,2]
[330275954,1719222209915,-538.312832,0.00016569,2]
[330275955,1719222209940,-538.312832,0.00016569,2]
[330275956,1719222209974,-538.312832,0.00016569,2]
[330275957,1719222210000,-538.312832,0.00016569,2]
[330275958,1719222210028,-538.312832,0.00016569,2]
[330275959,1719222210052,-538.312832,0.00016569,2]
[330275960,1719222210078,-538.312832,0.00016569,2]
[330275961,1719222210103,-538.312831,0.00016569,2]
[330275962,1719222210129,-151.0,0.00016569,2]
[330275963,1719222210154,-151.0,0.00016569,2]
[330275964,1719222210180,-151.0,0.00016569,2]
[330275965,1719222210205,-151.0,0.00016569,2]
[330275966,1719222210242,-151.0,0.00016569,2]
[330275967,1719222210268,-151.0,0.00016569,2]
[330275968,1719222210295,-526.85721157,0.0001657,2]
[330275969,1719222210321,-1469.6398233,0.00016617,2]
[330275970,1719222210352,-395.943706,0.00016633,2]
[330275971,1719222210378,-395.943706,0.00016633,2]
[330275972,1719222210404,-8223.761611,0.00016633,2]
[330275973,1719222210431,-8223.761611,0.00016633,2]
[330275974,1719222210457,-292.475844,0.00016711,2]
[330275975,1719222210498,-292.475844,0.00016711,2]
[330275976,1719222210524,-500.0,0.00016712,2]
[330275977,1719222210552,-4233.71,0.00016712,2]
[330275978,1719222210577,-506.63340407,0.00016712,2]
[330275979,1719222210603,-500.0,0.00016712,2]
[330275980,1719222210628,-500.0,0.00016712,2]
[330275981,1719222210653,-500.0,0.00016712,2]
[330275982,1719222210680,-500.0,0.00016712,2]
[330275983,1719222210707,-906.19,0.00016712,2]
[330275984,1719222210740,-3893.36,0.00016712,2]
[330275985,1719222210766,-779.74,0.00016712,2]
[330275986,1719222210792,-512.32433393,0.00016712,2]
[330275987,1719222210818,-500.0,0.00016712,2]
[330275988,1719222210845,-681.54,0.00016712,2]
[330275989,1719222210873,-19174.68,0.00016712,2]
[330275990,1719222210902,-528.09626826,0.00016712,2]
[330275991,1719222210929,-1960.37,0.00016712,2]
[330275992,1719222210955,-2095.96,0.00016712,2]
[330275993,1719222210988,-4102.19,0.00016712,2]
[330275994,1719222211014,-284.64664354,0.00016716,2]
[330275995,1719222211041,-500.0,0.00016717,2]
[330275996,1719222211068,-500.27088862,0.00016717,2]
[330275997,1719222211095,-500.0,0.00016717,2]
[330275998,1719222211120,-500.0,0.00016717,2]
[330275999,1719222211145,-500.0,0.00016717,2]
[330276000,1719222211171,-326.51629993,0.00016717,2]
[330276001,1719222211196,-500.74752895,0.00016717,2]
[330276002,1719222211225,-500.0,0.00016717,2]
[330276003,1719222211250,-506.80980554,0.00016717,2]
[330276004,1719222211274,-507.28086746,0.00016717,2]
[330276005,1719222211300,-1000.0,0.00016717,2]
[330276006,1719222211328,-1000.0,0.00016717,2]
[330276007,1719222211355,-1000.0,0.00016717,2]
[330276008,1719222211381,-500.0,0.00016717,2]
[330276009,1719222211409,-500.0,0.00016717,2]
[330276010,1719222211434,-500.0,0.00016717,2]
[330276011,1719222211464,-500.0,0.00016717,2]
[330276012,1719222211492,-500.0,0.00016717,2]
[330276013,1719222211517,-506.70726259,0.00016717,2]
[330276014,1719222211543,-514.13588531,0.00016717,2]
[330276015,1719222211570,-500.0,0.00016717,2]
[330276016,1719222211596,-504.61749582,0.00016717,2]
[330276017,1719222211622,-500.0,0.00016717,2]
[330276018,1719222211759,-505.45336454,0.00016717,2]
[330276019,1719222211786,-508.07531729,0.00016717,2]
[330276020,1719222211812,-500.19015306,0.00016717,2]
[330276021,1719222211837,-508.54715155,0.00016717,2]
[330276022,1719222211862,-517.56170255,0.00016717,2]
[330276023,1719222211887,-504.51931464,0.00016717,2]
[330276024,1719222211916,-284.52366658,0.00016717,2]
[330276025,1719222211942,-617.2604296,0.00016717,2]
[330276026,1719222211973,-500.0,0.00016717,2]
[330276027,1719222212000,-514.1812268,0.00016717,2]
[330276028,1719222212028,-505.11965222,0.00016717,2]
[330276029,1719222212055,-500.0,0.00016717,2]
[330276030,1719222212083,-505.6606314,0.00016717,2]
[330276031,1719222212110,-503.25460197,0.00016717,2]
[330276032,1719222212136,-415.5871649,0.00016717,2]
[330276033,1719222212162,-500.0,0.00016717,2]
[330276034,1719222212188,-500.0,0.00016717,2]
[330276035,1719222212218,-502.99456902,0.00016717,2]
[330276036,1719222212243,-302.70250165,0.00016717,2]
[330276037,1719222212268,-504.30762572,0.00016717,2]
[330276038,1719222212297,-151.0,0.00016717,2]
[330276039,1719222212324,-505.0900718,0.00016717,2]
[330276040,1719222212352,-151.0,0.00016717,2]
[330276041,1719222212377,-501.8473309,0.00016717,2]
[330276042,1719222212405,-500.0,0.00016717,2]
[330276043,1719222212432,-500.0,0.00016717,2]
[330276044,1719222212459,-151.0,0.00016717,2]
[330276045,1719222212491,-500.0,0.00016717,2]
[330276046,1719222212517,-151.0,0.00016717,2]
[330276047,1719222212544,-247.237692,0.00016717,2]
[330276048,1719222212572,-504.18179672,0.00016717,2]
[330276049,1719222212598,-650.8,0.00016717,2]
[330276050,1719222212626,-524.54534281,0.00016717,2]
[330276051,1719222212653,-151.0,0.00016717,2]
[330276052,1719222212680,-500.0,0.00016717,2]
[330276053,1719222212707,-502.59077471,0.00016717,2]
[330276054,1719222212740,-500.0,0.00016717,2]
[330276055,1719222212769,-546.46341874,0.00016717,2]
[330276056,1719222212796,-505.08860987,0.00016717,2]
[330276057,1719222212823,-506.34960376,0.00016717,2]
[330276058,1719222212850,-506.7761798,0.00016717,2]
[330276059,1719222212877,-506.63193811,0.00016717,2]
[330276060,1719222212903,-500.0,0.00016717,2]
[330276061,1719222212930,-512.94830801,0.00016717,2]
[330276062,1719222212957,-500.0,0.00016717,2]
[330276063,1719222212996,-151.0,0.00016717,2]
[330276064,1719222213028,-151.0,0.00016717,2]
[330276065,1719222213055,-151.0,0.00016717,2]
[330276066,1719222213081,-185.070072,0.00016717,2]
[330276067,1719222213108,-500.0,0.00016717,2]
[330276068,1719222213135,-501.74041586,0.00016717,2]
[330276069,1719222213163,-543.47,0.00016717,2]
[330276070,1719222213189,-500.0,0.00016717,2]
[330276071,1719222213225,-728.31,0.00016717,2]
[330276072,1719222213252,-500.0,0.00016717,2]
[330276073,1719222213280,-509.00550511,0.00016717,2]
[330276074,1719222213307,-501.28442853,0.00016717,2]
[330276075,1719222213336,-506.03605693,0.00016717,2]
[330276076,1719222213363,-151.0,0.00016717,2]
[330276077,1719222213392,-151.0,0.00016717,2]
[330276078,1719222213422,-165.659502,0.00016717,2]
[330276079,1719222213449,-500.0,0.00016717,2]
[330276080,1719222213480,-643.46,0.00016717,2]
[330276081,1719222213507,-500.0,0.00016717,2]
[330276082,1719222213539,-520.59,0.00016717,2]
[330276083,1719222213565,-500.0,0.00016717,2]
[330276084,1719222213591,-2956.68,0.00016717,2]
[330276085,1719222213615,-506.1621545,0.00016717,2]
[330276086,1719222213640,-500.0,0.00016717,2]
[330276087,1719222213665,-500.0,0.00016717,2]
[330276088,1719222213690,-325.1748145,0.00016717,2]
[330276089,1719222213718,-542.63888491,0.00016717,2]
[330276090,1719222213743,-500.0,0.00016717,2]
[330276091,1719222213769,-500.0,0.00016717,2]
[330276092,1719222213902,-500.0,0.00016717,2]
[330276093,1719222213935,-249.81751243,0.00016717,2]
[330276094,1719222213962,-502.17910495,0.00016717,2]
[330276095,1719222213992,-500.0,0.00016717,2]
[330276096,1719222214017,-500.0,0.00016717,2]
[330276097,1719222214043,-502.7829354,0.00016717,2]
[330276098,1719222214069,-292.475844,0.00016717,2]
[330276099,1719222214095,-292.475844,0.00016717,2]
[330276100,1719222214120,-292.475844,0.00016717,2]
[330276101,1719222214145,-292.475844,0.00016717,2]
[330276102,1719222214171,-292.475844,0.00016717,2]
[330276103,1719222214196,-292.475844,0.00016717,2]
[330276104,1719222214226,-292.475844,0.00016717,2]
[330276105,1719222214252,-292.475839,0.00016717,2]
[330276106,1719222214277,-500.0,0.00016717,2]
[330276107,1719222214303,-500.0,0.00016717,2]
[330276108,1719222214331,-500.0,0.00016717,2]
[330276109,1719222214360,-395.943706,0.00016717,2]
[330276110,1719222214387,-395.94370944,0.00016717,2]
[330276111,1719222214414,-500.0,0.00016717,2]
[330276112,1719222214442,-506.23599139,0.00016717,2]
[330276113,1719222214471,-505.76983229,0.00016717,2]
[330276114,1719222214496,-500.0,0.00016717,2]
[330276115,1719222214520,-504.82232797,0.00016717,2]
[330276116,1719222214546,-505.31410678,0.00016717,2]
[330276117,1719222214572,-502.86678996,0.00016717,2]
[330276118,1719222214598,-8223.761611,0.00016717,2]
[330276119,1719222214623,-500.0,0.00016717,2]
[330276120,1719222214648,-500.0,0.00016717,2]
[330276121,1719222214673,-8223.761616,0.00016717,2]
[330276122,1719222214698,-500.0,0.00016717,2]
[330276123,1719222214725,-501.19678441,0.00016717,2]
[330276124,1719222214750,-500.0,0.00016717,2]
[330276125,1719222214775,-503.08404458,0.00016717,2]
[330276126,1719222214800,-500.0,0.00016717,2]
[330276127,1719222214825,-500.0,0.00016717,2]
[330276128,1719222214849,-502.71064521,0.00016717,2]
[330276129,1719222214874,-500.0,0.00016717,2]
[330276130,1719222214899,-507.42335309,0.00016717,2]
[330276131,1719222214925,-500.67855219,0.00016717,2]
[330276132,1719222214950,-512.81272887,0.00016717,2]
[330276133,1719222214980,-504.39816337,0.00016717,2]
[330276134,1719222215006,-500.0,0.00016717,2]
[330276135,1719222215032,-501.65470859,0.00016717,2]
[330276136,1719222215058,-452.3761108,0.00016717,2]
[330276137,1719222215084,-500.0,0.00016717,2]
[330276138,1719222215110,-500.8261616,0.00016717,2]
[330276139,1719222215135,-500.0,0.00016717,2]
[330276140,1719222215162,-500.0,0.00016717,2]
[330276141,1719222215188,-520.37862454,0.00016717,2]
[330276142,1719222215216,-500.0,0.00016717,2]
[330276143,1719222215243,-17227.699458,0.00016718,2]
[330276144,1719222215269,-1923.5,0.00016734,2]
[330276145,1719222215296,-500.0,0.00016734,2]
[330276146,1719222215324,-1333.02,0.00016734,2]
[330276147,1719222215355,-548.46,0.00016734,2]
[330276148,1719222215384,-500.0,0.00016734,2]
[330276149,1719222215412,-4096.92,0.00016734,2]
[330276150,1719222215440,-593.93,0.00016734,2]
[330276151,1719222215471,-8740.27,0.00016734,2]
[330276152,1719222215498,-500.0,0.00016734,2]
[330276153,1719222215525,-2379.52,0.00016734,2]
[330276154,1719222215552,-500.0,0.00016734,2]
[330276155,1719222215578,-1038.2,0.00016734,2]
[330276156,1719222215604,-500.0,0.00016746,2]
[330276157,1719222215631,-813.61,0.00016772,2]
[330276158,1719222215657,-500.0,0.00016772,2]
[330276159,1719222215682,-719.51,0.00016772,2]
[330276160,1719222215708,-216.03417632,0.00016772,2]
[330276161,1719222215741,-500.0,0.00016772,2]
[330276162,1719222215770,-500.0,0.00016772,2]
[330276163,1719222215796,-10562.28786365,0.00016823,2]
[330276164,1719222215821,-9601.79213166,0.00016839,2]
[330276165,1719222215846,-515.03029125,0.00016843,2]
[330276166,1719222215985,-278.88147707,0.00016843,2]
[330276167,1719222216011,-906.5,0.00016843,2]
[330276168,1719222216038,-1123.17,0.00016843,2]
[330276169,1719222216064,-151.0,0.00016843,2]
[330276170,1719222216090,-151.0,0.00016843,2]
[330276171,1719222216119,-151.0,0.00016843,2]
[330276172,1719222216148,-151.0,0.00016843,2]
[330276173,1719222216175,-500.0,0.00016843,2]
[330276174,1719222216201,-500.0,0.00016843,2]
[330276175,1719222216236,-949.97,0.00016843,2]
[330276176,1719222216263,-500.0,0.00016843,2]
[330276177,1719222216289,-500.0,0.00016843,2]
[330276178,1719222216318,-500.0,0.00016843,2]
[330276179,1719222216349,-500.0,0.00016843,2]
[330276180,1719222216376,-500.0,0.00016843,2]
[330276181,1719222216402,-753.55,0.00016843,2]
[330276182,1719222216431,-500.0,0.00016843,2]
[330276183,1719222216457,-500.0,0.00016843,2]
[330276184,1719222216487,-728.93,0.00016843,2]
[330276185,1719222216514,-500.0,0.00016843,2]
[330276186,1719222216542,-602.98,0.00016843,2]
[330276187,1719222216568,-1441.06,0.00016843,2]
[330276188,1719222216594,-913.66,0.00016843,2]
[330276189,1719222216619,-501.41,0.00016843,2]
[330276190,1719222216646,-500.0,0.00016843,2]
[330276191,1719222216674,-642.39,0.00016843,2]
[330276192,1719222216700,-508.39904174,0.00016843,2]
[330276193,1719222216730,-500.0,0.00016843,2]
[330276194,1719222216756,-513.29,0.00016843,2]
[330276195,1719222216782,-3689.85,0.00016843,2]
[330276196,1719222216808,-500.0,0.00016843,2]
[330276197,1719222216834,-608.1,0.00016843,2]
[330276198,1719222216859,-721.72,0.00016843,2]
[330276199,1719222216886,-674.66,0.00016843,2]
[330276200,1719222216913,-500.0,0.00016843,2]
[330276201,1719222216941,-565.23,0.00016843,2]
[330276202,1719222216968,-500.0,0.00016843,2]
[330276203,1719222216999,-500.0,0.00016843,2]
[330276204,1719222217025,-1785.97,0.00016843,2]
[330276205,1719222217052,-2724.49,0.00016843,2]
[330276206,1719222217078,-14099.63,0.00016843,2]
[330276207,1719222217105,-159.549192,0.00016872,2]
[330276208,1719222217131,-151.0,0.00016872,2]
[330276209,1719222217157,-151.0,0.00016872,2]
[330276210,1719222217183,-151.0,0.00016872,2]
[330276211,1719222217209,-151.0,0.00016872,2]
[330276212,1719222217242,-151.0,0.00016872,2]
[330276213,1719222217270,-151.0,0.00016872,2]
[330276214,1719222217296,-151.0,0.00016872,2]
[330276215,1719222217324,-151.0,0.00016872,2]
[330276216,1719222217357,-510.85782169,0.00016872,2]
[330276217,1719222217385,-509.85092994,0.00016872,2]
[330276218,1719222217412,-12518.39,0.00016872,2]
[330276219,1719222217441,-500.0,0.00016872,2]
[330276220,1719222217472,-505.18948488,0.00016872,2]
[330276221,1719222217498,-9601.79213166,0.00016873,2]
[330276222,1719222217524,-151.0,0.00016892,2]
[330276223,1719222217551,-152.006821,0.00016892,2]
[330276224,1719222217577,-212.925891,0.00016892,2]
[330276225,1719222217604,-151.0,0.00016892,2]
[330276226,1719222217631,-220.615231,0.00016892,2]
[330276227,1719222217657,-151.0,0.00016892,2]
[330276228,1719222217683,-151.0,0.00016892,2]
[330276229,1719222217708,-3923.79380918,0.00016932,2]
[330276230,1719222217737,-719.79009237,0.00016932,2]
[330276231,1719222217762,-500.7835021,0.00016942,2]
[330276232,1719222217788,-153.0,0.00016942,2]
[330276233,1719222217814,-153.0,0.00016942,2]
[330276234,1719222217840,-153.0,0.00016942,2]
[330276235,1719222217866,-153.0,0.00016942,2]
[330276236,1719222217892,-153.0,0.00016945,2]
[330276237,1719222217916,-3923.79380918,0.00016948,2]
[330276238,1719222217942,-6972.7816651,0.00016948,2]
[330276239,1719222217968,-1200.14898631,0.00016948,7]
[330276240,1719222218114,-183.753108,0.00016956,2]
[330276241,1719222218141,-183.753107,0.00016956,2]
[330276242,1719222218167,-202.163112,0.00016956,2]
[330276243,1719222218194,-292.589196,0.00016956,2]
[330276244,1719222218223,-254.154481,0.00016956,2]
[330276245,1719222218248,-202.163109,0.00016956,2]
[330276246,1719222218274,-183.753107,0.00016956,2]
[330276247,1719222218300,-591.221311,0.00016956,2]
[330276248,1719222218328,-697.316783,0.00016956,2]
[330276249,1719222218356,-174.329196,0.00016956,2]
[330276250,1719222218383,-184.75666,0.00016956,2]
[330276251,1719222218407,-1313.011853,0.00016985,2]
[330276252,1719222218435,-1102.94117698,0.00016985,2]
[330276253,1719222218462,-500.0,0.00016986,2]
[330276254,1719222218498,-4233.71,0.00016986,2]
[330276255,1719222218525,-500.0,0.00016986,2]
[330276256,1719222218551,-500.0,0.00016986,2]
[330276257,1719222218577,-500.0,0.00016986,2]
[330276258,1719222218604,-500.0,0.00016986,2]
[330276259,1719222218630,-906.19,0.00016986,2]
[330276260,1719222218658,-3893.36,0.00016986,2]
[330276261,1719222218685,-779.74,0.00016986,2]
[330276262,1719222218712,-500.0,0.00016986,2]
[330276263,1719222218746,-681.54,0.00016986,2]
[330276264,1719222218773,-19174.68,0.00016986,2]
[330276265,1719222218800,-1960.37,0.00016986,2]
[330276266,1719222218826,-2095.96,0.00016986,2]
[330276267,1719222218852,-4102.19,0.00016986,2]
[330276268,1719222218877,-159.0401425,0.00016991,2]
[330276269,1719222218903,-500.0,0.00016991,2]
[330276270,1719222218929,-500.0,0.00016991,2]
[330276271,1719222218956,-500.0,0.00016991,2]
[330276272,1719222218992,-519.27363421,0.00016991,2]
[330276273,1719222219018,-610.54721276,0.00016991,2]
[330276274,1719222219046,-500.0,0.00016991,2]
[330276275,1719222219074,-191.26812037,0.00016991,2]
[330276276,1719222219105,-500.0,0.00016991,2]
[330276277,1719222219133,-500.0,0.00016991,2]
[330276278,1719222219161,-500.0,0.00016991,2]
[330276279,1719222219190,-500.0,0.00016991,2]
[330276280,1719222219222,-500.0,0.00016991,2]
[330276281,1719222219250,-500.0,0.00016991,2]
[330276282,1719222219277,-500.0,0.00016991,2]
[330276283,1719222219305,-508.62772059,0.00016991,2]
[330276284,1719222219336,-500.0,0.00016991,2]
[330276285,1719222219364,-500.44662187,0.00016991,2]
[330276286,1719222219394,-151.0,0.00016991,2]
[330276287,1719222219421,-650.8,0.00016991,2]
[330276288,1719222219449,-502.06858797,0.00016991,2]
[330276289,1719222219476,-509.48118084,0.00016991,2]
[330276290,1719222219504,-500.0,0.00016991,2]
[330276291,1719222219533,-500.0,0.00016991,2]
[330276292,1719222219562,-578.00585835,0.00016991,2]
[330276293,1719222219591,-543.47,0.00016991,2]
[330276294,1719222219619,-504.10402697,0.00016991,2]
[330276295,1719222219647,-728.31,0.00016991,2]
[330276296,1719222219676,-500.0,0.00016991,2]